[Event "Live Chess"]
[Site "Chess.com"]
[Date "2024.06.01"]
[Round "-"]
[White "KnightStripes"]
[Black "lyricalschemes"]
[Result "0-1"]
[WhiteElo "899"]
[BlackElo "2398"]
[TimeControl "300"]
[EndTime "14:29:18 PDT"]
[Termination "lyricalschemes won by checkmate"]

1. d4 {[%clk 0:04:55.4]} 1... Nf6 {[%clk 0:04:57.1]} 2. Nc3 {[%clk 0:04:54.4]}
2... d5 {[%clk 0:04:54.2]} 3. Bf4 {[%clk 0:04:53.1]} 3... c5 {[%clk 0:04:53.6]}
4. e3 {[%clk 0:04:51]} 4... cxd4 {[%clk 0:04:50.4]} 5. exd4 {[%clk 0:04:49.7]}
5... e6 {[%clk 0:04:48.5]} 6. Nb5 {[%clk 0:04:47.4]} 6... Qa5+ {[%clk
0:04:43.6]} 7. c3 {[%clk 0:04:45.2]} 7... Na6 {[%clk 0:04:37.1]} 8. Nd6+ {[%clk
0:04:24.2]} 8... Bxd6 {[%clk 0:04:35.5]} 9. Bxd6 {[%clk 0:04:23.8]} 9... Ne4
{[%clk 0:04:34.7]} 10. f3 {[%clk 0:04:22]} 10... Nxd6 {[%clk 0:04:33.4]} 11. Bd3
{[%clk 0:04:13.7]} 11... Bd7 {[%clk 0:04:32.1]} 12. Ne2 {[%clk 0:04:12.7]} 12...
Bb5 {[%clk 0:04:23.6]} 13. Bxb5+ {[%clk 0:04:08]} 13... Qxb5 {[%clk 0:04:22.4]}
14. O-O {[%clk 0:04:07.1]} 14... O-O {[%clk 0:04:21.1]} 15. b4 {[%clk
0:03:59.9]} 15... Nf5 {[%clk 0:04:18.3]} 16. Qd2 {[%clk 0:03:51.4]} 16... Rac8
{[%clk 0:04:14.7]} 17. g4 {[%clk 0:03:43.1]} 17... Nd6 {[%clk 0:04:13.5]} 18.
Ng3 {[%clk 0:03:37.8]} 18... Qc4 {[%clk 0:04:10.2]} 19. Nh5 {[%clk 0:03:31.4]}
19... Qxc3 {[%clk 0:04:08.5]} 20. Qg5 {[%clk 0:03:28.1]} 20... Qxd4+ {[%clk
0:04:06.9]} 21. Kh1 {[%clk 0:03:24]} 21... h6 {[%clk 0:04:03.5]} 22. Qh4 {[%clk
0:03:11.9]} 22... Nf5 {[%clk 0:03:59.1]} 23. Qe1 {[%clk 0:03:09]} 23... Ne3
{[%clk 0:03:52.3]} 24. Qf2 {[%clk 0:02:41.6]} 24... Rc2 {[%clk 0:03:48.6]} 25.
Qg3 {[%clk 0:02:30.5]} 25... Nxf1 {[%clk 0:03:47]} 26. Qh4 {[%clk 0:02:17.5]}
26... Rxh2+ {[%clk 0:03:41.9]} 27. Qxh2 {[%clk 0:02:12.5]} 27... Nxh2 {[%clk
0:03:41.8]} 28. Kxh2 {[%clk 0:02:12]} 28... Qxa1 {[%clk 0:03:40.5]} 29. b5
{[%clk 0:02:08.3]} 29... Nc5 {[%clk 0:03:34]} 30. b6 {[%clk 0:02:06.4]} 30...
axb6 {[%clk 0:03:30.2]} 31. g5 {[%clk 0:02:02.7]} 31... Ra8 {[%clk 0:03:27.8]}
32. gxh6 {[%clk 0:02:00.5]} 32... Rxa2+ {[%clk 0:03:27.7]} 33. Kh3 {[%clk
0:01:58.8]} 33... Qh1+ {[%clk 0:03:26.8]} 34. Kg4 {[%clk 0:01:57]} 34... Rg2+
{[%clk 0:03:24.7]} 35. Kf4 {[%clk 0:01:54.4]} 35... Qc1+ {[%clk 0:03:24.4]} 36.
Ke5 {[%clk 0:01:52.4]} 36... Rg5+ {[%clk 0:03:21.8]} 37. Kd6 {[%clk 0:01:49.9]}
37... Rxh5 {[%clk 0:03:21.1]} 38. f4 {[%clk 0:01:48.4]} 38... Qxf4+ {[%clk
0:03:19.6]} 39. Ke7 {[%clk 0:01:46.3]} 39... Qc7+ {[%clk 0:03:19.3]} 40. Ke8
{[%clk 0:01:43.3]} 40... Qd7# {[%clk 0:03:19.2]} 0-1

[Event "Live Chess"]
[Site "Chess.com"]
[Date "2024.06.01"]
[Round "-"]
[White "NottheBishopSacrifice"]
[Black "nigelst"]
[Result "1-0"]
[WhiteElo "2258"]
[BlackElo "1663"]
[TimeControl "300"]
[EndTime "14:29:20 PDT"]
[Termination "NottheBishopSacrifice won by resignation"]

1. d4 {[%clk 0:04:58.4]} 1... Nf6 {[%clk 0:04:58.2]} 2. c4 {[%clk 0:04:58.3]}
2... e6 {[%clk 0:04:56.7]} 3. Nf3 {[%clk 0:04:57.3]} 3... Bb4+ {[%clk
0:04:55.1]} 4. Bd2 {[%clk 0:04:55.9]} 4... Qe7 {[%clk 0:04:52.1]} 5. e3 {[%clk
0:04:54.2]} 5... O-O {[%clk 0:04:45.9]} 6. Bd3 {[%clk 0:04:46.5]} 6... Bxd2+
{[%clk 0:04:36.5]} 7. Qxd2 {[%clk 0:04:45.1]} 7... d6 {[%clk 0:04:36]} 8. Nc3
{[%clk 0:04:44.6]} 8... Nbd7 {[%clk 0:04:34.5]} 9. O-O {[%clk 0:04:43.4]} 9...
e5 {[%clk 0:04:33.3]} 10. Bc2 {[%clk 0:04:43]} 10... c6 {[%clk 0:03:45.3]} 11.
b4 {[%clk 0:04:39.3]} 11... a5 {[%clk 0:03:42.4]} 12. b5 {[%clk 0:04:38.2]}
12... c5 {[%clk 0:03:38.6]} 13. dxe5 {[%clk 0:04:35.7]} 13... Nxe5 {[%clk
0:03:33]} 14. Nxe5 {[%clk 0:04:35]} 14... dxe5 {[%clk 0:03:31.7]} 15. Be4 {[%clk
0:04:33.4]} 15... Rb8 {[%clk 0:03:29.6]} 16. Nd5 {[%clk 0:04:30]} 16... Nxd5
{[%clk 0:03:26.9]} 17. Bxd5 {[%clk 0:04:29.8]} 17... Be6 {[%clk 0:03:23.2]} 18.
e4 {[%clk 0:04:29]} 18... b6 {[%clk 0:03:21.3]} 19. a4 {[%clk 0:04:27.2]} 19...
Rfd8 {[%clk 0:03:16.7]} 20. Qe3 {[%clk 0:04:26.6]} 20... f5 {[%clk 0:03:10.8]}
21. Bxe6+ {[%clk 0:04:20.8]} 21... Qxe6 {[%clk 0:03:08.2]} 22. exf5 {[%clk
0:04:20.5]} 22... Qxf5 {[%clk 0:03:04.4]} 23. Rae1 {[%clk 0:04:19.9]} 23... Re8
{[%clk 0:02:57.6]} 24. Rd1 {[%clk 0:04:17.1]} 24... Rbd8 {[%clk 0:02:50.3]} 25.
Rde1 {[%clk 0:04:13.9]} 25... Rd4 {[%clk 0:02:46.2]} 26. Rc1 {[%clk 0:04:12.5]}
26... Qe6 {[%clk 0:02:26.6]} 27. Qe2 {[%clk 0:04:09.6]} 27... Red8 {[%clk
0:02:14.9]} 28. Rfe1 {[%clk 0:04:06.8]} 28... Rd2 {[%clk 0:02:08.6]} 29. Qe4
{[%clk 0:03:56.8]} 29... R2d4 {[%clk 0:01:57.7]} 30. Qb7 {[%clk 0:03:51.4]}
30... Rxc4 {[%clk 0:01:46.5]} 31. Rxc4 {[%clk 0:03:46.4]} 31... Qxc4 {[%clk
0:01:43.9]} 32. Qxb6 {[%clk 0:03:45.4]} 32... Qd5 {[%clk 0:01:34.5]} 33. Qxa5
{[%clk 0:03:41]} 33... Qd2 {[%clk 0:01:30.3]} 34. Qxd2 {[%clk 0:03:39]} 34...
Rxd2 {[%clk 0:01:27.9]} 35. a5 {[%clk 0:03:38.5]} 35... Rb2 {[%clk 0:01:24.6]}
36. b6 {[%clk 0:03:37.4]} 36... Rb5 {[%clk 0:01:22.9]} 37. Ra1 {[%clk
0:03:36.1]} 37... c4 {[%clk 0:01:14.2]} 38. a6 {[%clk 0:03:35.2]} 38... c3
{[%clk 0:01:09]} 39. a7 {[%clk 0:03:34.2]} 39... c2 {[%clk 0:01:06.3]} 40. a8=Q+
{[%clk 0:03:32.6]} 40... Kf7 {[%clk 0:01:04.6]} 41. Qa2+ {[%clk 0:03:32.1]}
41... Kg6 {[%clk 0:01:02.9]} 42. Qxc2+ {[%clk 0:03:31.7]} 1-0

[Event "Live Chess"]
[Site "Chess.com"]
[Date "2024.06.01"]
[Round "-"]
[White "Rusty_Bridges"]
[Black "ACM42"]
[Result "1-0"]
[WhiteElo "1524"]
[BlackElo "2160"]
[TimeControl "300"]
[EndTime "14:29:22 PDT"]
[Termination "Rusty_Bridges won by resignation"]

1. e4 {[%clk 0:04:53.2]} 1... e6 {[%clk 0:04:58.7]} 2. d4 {[%clk 0:04:51.8]}
2... d5 {[%clk 0:04:58.1]} 3. exd5 {[%clk 0:04:51.7]} 3... exd5 {[%clk
0:04:57.1]} 4. Bd3 {[%clk 0:04:50.6]} 4... Bd6 {[%clk 0:04:56.5]} 5. Nf3 {[%clk
0:04:49.3]} 5... Ne7 {[%clk 0:04:55.9]} 6. O-O {[%clk 0:04:48.3]} 6... O-O
{[%clk 0:04:55.3]} 7. Re1 {[%clk 0:04:46.1]} 7... c6 {[%clk 0:04:53.1]} 8. c3
{[%clk 0:04:43.4]} 8... Nd7 {[%clk 0:04:52]} 9. Bg5 {[%clk 0:04:42.4]} 9... f6
{[%clk 0:04:50.9]} 10. Bh4 {[%clk 0:04:41.6]} 10... Re8 {[%clk 0:04:41.9]} 11.
Qc2 {[%clk 0:04:39.8]} 11... Nf8 {[%clk 0:04:40.7]} 12. Nbd2 {[%clk 0:04:37.1]}
12... Neg6 {[%clk 0:04:37.7]} 13. Bg3 {[%clk 0:04:34]} 13... Rxe1+ {[%clk
0:04:33.2]} 14. Rxe1 {[%clk 0:04:31.6]} 14... Nf4 {[%clk 0:04:30.4]} 15. Nf1
{[%clk 0:04:15.1]} 15... Bg4 {[%clk 0:04:24.7]} 16. Nh4 {[%clk 0:03:59.8]} 16...
Nxd3 {[%clk 0:04:15.9]} 17. Qxd3 {[%clk 0:03:57.8]} 17... Qc7 {[%clk 0:04:09.1]}
18. Nf5 {[%clk 0:03:45.7]} 18... Bxg3 {[%clk 0:04:06.7]} 19. N1xg3 {[%clk
0:03:42.4]} 19... Ng6 {[%clk 0:03:56.6]} 20. h4 {[%clk 0:03:14.8]} 20... Rd8
{[%clk 0:03:26.7]} 21. h5 {[%clk 0:03:02.1]} 21... Nf4 {[%clk 0:03:23]} 22. Qe3
{[%clk 0:02:54.1]} 22... Nxh5 {[%clk 0:03:02.1]} 23. Qe6+ {[%clk 0:02:41.4]}
23... Qf7 {[%clk 0:02:52.8]} 24. Nh6+ {[%clk 0:01:58.9]} 24... gxh6 {[%clk
0:02:48.9]} 25. Qxg4+ {[%clk 0:01:57.2]} 25... Ng7 {[%clk 0:02:46.9]} 26. Nf5
{[%clk 0:01:51.7]} 26... h5 {[%clk 0:02:21.3]} 27. Nh6+ {[%clk 0:01:29.8]} 27...
Kf8 {[%clk 0:02:17.6]} 28. Nxf7 {[%clk 0:01:27.8]} 28... hxg4 {[%clk 0:02:16.4]}
29. Nxd8 {[%clk 0:01:26.6]} 1-0

[Event "Live Chess"]
[Site "Chess.com"]
[Date "2024.06.01"]
[Round "-"]
[White "Frankie_Badacsonyi"]
[Black "ZombieChainsaw"]
[Result "1-0"]
[WhiteElo "2440"]
[BlackElo "1792"]
[TimeControl "300"]
[EndTime "14:29:27 PDT"]
[Termination "Frankie_Badacsonyi won by resignation"]

1. d4 {[%clk 0:04:57.2]} 1... g6 {[%clk 0:04:58.6]} 2. e4 {[%clk 0:04:56.3]}
2... Bg7 {[%clk 0:04:57.2]} 3. Be3 {[%clk 0:04:55.4]} 3... d6 {[%clk 0:04:55.6]}
4. Nc3 {[%clk 0:04:54.4]} 4... Nf6 {[%clk 0:04:54.2]} 5. f3 {[%clk 0:04:53.5]}
5... O-O {[%clk 0:04:48.9]} 6. Qd2 {[%clk 0:04:52.4]} 6... a6 {[%clk 0:04:46.8]}
7. O-O-O {[%clk 0:04:49.4]} 7... b5 {[%clk 0:04:43.6]} 8. Kb1 {[%clk 0:04:48.2]}
8... Nbd7 {[%clk 0:04:13.2]} 9. Bh6 {[%clk 0:04:41.7]} 9... Nb6 {[%clk
0:04:04.4]} 10. h4 {[%clk 0:04:37.9]} 10... b4 {[%clk 0:03:59.4]} 11. Nce2
{[%clk 0:04:23.1]} 11... d5 {[%clk 0:03:53.3]} 12. e5 {[%clk 0:04:15.3]} 12...
Ne8 {[%clk 0:03:47]} 13. h5 {[%clk 0:04:13.7]} 13... c5 {[%clk 0:03:42.4]} 14.
hxg6 {[%clk 0:04:11.3]} 14... Nc4 {[%clk 0:03:19.1]} 15. Qc1 {[%clk 0:04:09.4]}
15... Bf5 {[%clk 0:03:09.7]} 16. Bxg7 {[%clk 0:04:06.5]} 16... Nxg7 {[%clk
0:03:04]} 17. gxf7+ {[%clk 0:03:55.4]} 17... Rxf7 {[%clk 0:02:59.8]} 18. g4
{[%clk 0:03:52]} 18... Bg6 {[%clk 0:02:55.7]} 19. Nf4 {[%clk 0:03:50.9]} 19...
Bxc2+ {[%clk 0:02:01.2]} 20. Qxc2 {[%clk 0:03:43.6]} 20... Rxf4 {[%clk
0:01:56.1]} 21. Qxh7+ {[%clk 0:03:42.1]} 21... Kf8 {[%clk 0:01:55.5]} 22. Qh8+
{[%clk 0:03:33.1]} 22... Kf7 {[%clk 0:01:54.9]} 23. Qxd8 {[%clk 0:03:31.3]}
23... Rxd8 {[%clk 0:01:54.8]} 24. Bxc4 {[%clk 0:03:29.6]} 24... dxc4 {[%clk
0:01:53.7]} 25. d5 {[%clk 0:03:20.9]} 25... e6 {[%clk 0:01:46.4]} 26. dxe6+
{[%clk 0:03:00.3]} 26... Nxe6 {[%clk 0:01:40.6]} 27. Rxd8 {[%clk 0:02:58.8]}
27... Nxd8 {[%clk 0:01:40.5]} 28. Rh6 {[%clk 0:02:52.3]} 28... Ne6 {[%clk
0:01:35.8]} 29. Rh7+ {[%clk 0:02:50]} 29... Kg6 {[%clk 0:01:32.5]} 30. Ra7
{[%clk 0:02:42.8]} 30... Nd4 {[%clk 0:01:31.3]} 31. Rxa6+ {[%clk 0:02:40.5]}
31... Kf7 {[%clk 0:01:29.8]} 32. Ra5 {[%clk 0:02:29.7]} 32... Nxf3 {[%clk
0:01:24.3]} 33. Nxf3 {[%clk 0:02:27.7]} 33... Rxf3 {[%clk 0:01:23.7]} 34. Rxc5
{[%clk 0:02:14.2]} 34... Rf4 {[%clk 0:01:22.5]} 35. Rb5 {[%clk 0:02:06.3]} 35...
Rxg4 {[%clk 0:01:04.3]} 36. Rxb4 {[%clk 0:02:03.9]} 36... Ke6 {[%clk 0:01:03.9]}
37. Rb5 {[%clk 0:02:00.5]} 37... Rg1+ {[%clk 0:00:33.3]} 38. Kc2 {[%clk
0:01:59]} 38... Ra1 {[%clk 0:00:32.3]} 39. a3 {[%clk 0:01:57.8]} 39... Re1
{[%clk 0:00:25.2]} 40. Rc5 {[%clk 0:01:54.9]} 40... Re4 {[%clk 0:00:22.8]} 41.
Kc3 {[%clk 0:01:53.2]} 1-0

[Event "Live Chess"]
[Site "Chess.com"]
[Date "2024.06.01"]
[Round "-"]
[White "Brooms1989"]
[Black "KeithArkell"]
[Result "1-0"]
[WhiteElo "1141"]
[BlackElo "2421"]
[TimeControl "300"]
[EndTime "14:29:27 PDT"]
[Termination "Brooms1989 won by resignation"]

1. e4 {[%clk 0:04:54]} 1... c6 {[%clk 0:04:59.5]} 2. Nf3 {[%clk 0:04:51.3]} 2...
d5 {[%clk 0:04:59.4]} 3. exd5 {[%clk 0:04:50.5]} 3... cxd5 {[%clk 0:04:58]} 4.
Ne5 {[%clk 0:04:49.4]} 4... Nf6 {[%clk 0:04:57.9]} 5. d4 {[%clk 0:04:47.7]} 5...
Nc6 {[%clk 0:04:57.8]} 6. Bb5 {[%clk 0:04:45.5]} 6... g6 {[%clk 0:04:57.7]} 7.
Nxc6 {[%clk 0:04:27.1]} 7... Bd7 {[%clk 0:04:57.6]} 8. Nxd8 {[%clk 0:04:23]}
8... Bc6 {[%clk 0:04:57.5]} 9. Nxc6 {[%clk 0:04:20.9]} 9... a6 {[%clk
0:04:49.1]} 10. Ne5+ {[%clk 0:04:15.6]} 10... axb5 {[%clk 0:04:47.8]} 11. O-O
{[%clk 0:04:12.9]} 11... Bg7 {[%clk 0:04:47.1]} 12. c3 {[%clk 0:04:07.7]} 12...
O-O {[%clk 0:04:45.6]} 13. Bg5 {[%clk 0:04:04.2]} 13... Ne4 {[%clk 0:04:44.8]}
14. Be3 {[%clk 0:04:00.1]} 14... f6 {[%clk 0:04:43.6]} 15. Nf3 {[%clk
0:03:57.6]} 15... Rfc8 {[%clk 0:04:40.7]} 16. Nbd2 {[%clk 0:03:54.2]} 16... Nd6
{[%clk 0:04:40]} 17. Bf4 {[%clk 0:03:46.5]} 17... Nc4 {[%clk 0:04:36.5]} 18.
Nxc4 {[%clk 0:03:44.9]} 18... bxc4 {[%clk 0:04:35.9]} 19. Re1 {[%clk 0:03:42.9]}
19... Kf7 {[%clk 0:04:34.9]} 20. Qe2 {[%clk 0:03:40.4]} 20... Bf8 {[%clk
0:04:33.3]} 21. a3 {[%clk 0:03:34]} 21... Rc6 {[%clk 0:04:30]} 22. Nd2 {[%clk
0:03:18.2]} 22... Rb6 {[%clk 0:04:14.5]} 23. Rab1 {[%clk 0:03:11.4]} 23... Raa6
{[%clk 0:04:13.1]} 24. Qf3 {[%clk 0:03:08]} 24... e6 {[%clk 0:04:11.6]} 25. h3
{[%clk 0:03:03.3]} 25... Be7 {[%clk 0:04:06]} 26. Nf1 {[%clk 0:02:55.2]} 26...
Ra8 {[%clk 0:04:05.1]} 27. Ng3 {[%clk 0:02:53.9]} 27... Ra5 {[%clk 0:03:58.7]}
28. Bc7 {[%clk 0:02:51.6]} 28... Rab5 {[%clk 0:03:55.5]} 29. Bxb6 {[%clk
0:02:50.3]} 29... Rxb6 {[%clk 0:03:54.9]} 30. Ne2 {[%clk 0:02:45]} 30... Bd6
{[%clk 0:03:52.3]} 1-0

[Event "Live Chess"]
[Site "Chess.com"]
[Date "2024.06.01"]
[Round "-"]
[White "NeilDruggan73"]
[Black "PughmanChess"]
[Result "1-0"]
[WhiteElo "1751"]
[BlackElo "1376"]
[TimeControl "300"]
[EndTime "14:29:33 PDT"]
[Termination "NeilDruggan73 won by resignation"]

1. d4 {[%clk 0:04:57.1]} 1... f5 {[%clk 0:04:57.9]} 2. Bg5 {[%clk 0:04:50.3]}
2... h6 {[%clk 0:04:47.7]} 3. Bh4 {[%clk 0:04:43.7]} 3... g5 {[%clk 0:04:44.8]}
4. e4 {[%clk 0:04:43.3]} 4... Nf6 {[%clk 0:04:39.6]} 5. e5 {[%clk 0:04:41]} 5...
gxh4 {[%clk 0:04:18.3]} 6. exf6 {[%clk 0:04:39.1]} 6... exf6 {[%clk 0:04:15.5]}
7. Qh5+ {[%clk 0:04:37.3]} 7... Ke7 {[%clk 0:04:15]} 8. Nc3 {[%clk 0:04:28.8]}
8... d6 {[%clk 0:04:11.3]} 9. O-O-O {[%clk 0:04:25.3]} 9... Nd7 {[%clk
0:04:06.7]} 10. Re1+ {[%clk 0:04:19]} 10... Ne5 {[%clk 0:04:05.3]} 11. dxe5
{[%clk 0:04:12.6]} 11... fxe5 {[%clk 0:04:04.9]} 12. Bc4 {[%clk 0:04:07.2]}
12... Qe8 {[%clk 0:03:54.7]} 13. Nd5+ {[%clk 0:04:04]} 13... Kd7 {[%clk
0:03:53.6]} 14. Nf6+ {[%clk 0:04:01.5]} 1-0

[Event "Live Chess"]
[Site "Chess.com"]
[Date "2024.06.01"]
[Round "-"]
[White "upoe610"]
[Black "RichardABates"]
[Result "0-1"]
[WhiteElo "2239"]
[BlackElo "2231"]
[TimeControl "300"]
[EndTime "14:29:41 PDT"]
[Termination "RichardABates won by resignation"]

1. c4 {[%clk 0:04:57.8]} 1... g6 {[%clk 0:04:58.5]} 2. g3 {[%clk 0:04:56.5]}
2... Bg7 {[%clk 0:04:57.2]} 3. Bg2 {[%clk 0:04:55.1]} 3... Nf6 {[%clk
0:04:55.9]} 4. Nc3 {[%clk 0:04:54]} 4... O-O {[%clk 0:04:54.3]} 5. d4 {[%clk
0:04:52.3]} 5... d6 {[%clk 0:04:52.9]} 6. h3 {[%clk 0:04:50.1]} 6... c6 {[%clk
0:04:47.8]} 7. e4 {[%clk 0:04:48.3]} 7... e5 {[%clk 0:04:43.8]} 8. Nf3 {[%clk
0:04:28.6]} 8... exd4 {[%clk 0:04:42.2]} 9. Nxd4 {[%clk 0:04:23.3]} 9... d5
{[%clk 0:04:41.3]} 10. cxd5 {[%clk 0:04:17.8]} 10... cxd5 {[%clk 0:04:39.8]} 11.
exd5 {[%clk 0:04:13.9]} 11... Re8+ {[%clk 0:04:36.7]} 12. Be3 {[%clk 0:04:12.2]}
12... Nbd7 {[%clk 0:04:16.4]} 13. O-O {[%clk 0:04:10.4]} 13... Ne5 {[%clk
0:04:15.1]} 14. Qe2 {[%clk 0:04:05.8]} 14... Bd7 {[%clk 0:04:11]} 15. Rfd1
{[%clk 0:04:00.2]} 15... Rc8 {[%clk 0:04:09.2]} 16. Ndb5 {[%clk 0:03:56.8]}
16... Bxb5 {[%clk 0:03:59.6]} 17. Qxb5 {[%clk 0:03:50.8]} 17... Nc4 {[%clk
0:03:55.9]} 18. Bxa7 {[%clk 0:03:41.7]} 18... b6 {[%clk 0:03:42]} 19. d6 {[%clk
0:03:36.8]} 19... Rc5 {[%clk 0:03:28.7]} 20. Qb3 {[%clk 0:03:31.3]} 20... Qd7
{[%clk 0:03:20.1]} 21. Na4 {[%clk 0:03:20.8]} 21... Qxa7 {[%clk 0:03:02.5]} 22.
Nxc5 {[%clk 0:03:18]} 22... Na5 {[%clk 0:03:01]} 23. Qb5 {[%clk 0:03:05.8]}
23... bxc5 {[%clk 0:02:59.2]} 24. Rac1 {[%clk 0:03:02.9]} 24... Nd7 {[%clk
0:02:55.5]} 25. a3 {[%clk 0:02:54.8]} 25... Bd4 {[%clk 0:02:51.7]} 26. b4 {[%clk
0:02:48.7]} 26... Nb3 {[%clk 0:02:50.3]} 27. Bc6 {[%clk 0:02:33.5]} 27... Nxc1
{[%clk 0:02:26.6]} 28. Bxd7 {[%clk 0:02:23.9]} 28... Ne2+ {[%clk 0:02:25.1]} 29.
Kg2 {[%clk 0:02:05.7]} 29... Nc3 {[%clk 0:02:22.9]} 30. Qc6 {[%clk 0:02:04.7]}
30... Rd8 {[%clk 0:02:19.3]} 31. Be8 {[%clk 0:01:45.6]} 31... Nxd1 {[%clk
0:02:15.5]} 32. d7 {[%clk 0:01:44.5]} 32... cxb4 {[%clk 0:02:11.5]} 33. Qc4
{[%clk 0:01:12.7]} 33... Rxd7 {[%clk 0:02:08.4]} 34. Qc8 {[%clk 0:01:10.5]}
34... Qb7+ {[%clk 0:02:05.2]} 0-1

[Event "Live Chess"]
[Site "Chess.com"]
[Date "2024.06.01"]
[Round "-"]
[White "imchessive"]
[Black "cymbalshift"]
[Result "0-1"]
[WhiteElo "1594"]
[BlackElo "1509"]
[TimeControl "300"]
[EndTime "14:29:48 PDT"]
[Termination "cymbalshift won by checkmate"]

1. d4 {[%clk 0:04:59.3]} 1... Nf6 {[%clk 0:04:58.4]} 2. c4 {[%clk 0:04:58.6]}
2... e6 {[%clk 0:04:57.4]} 3. Nf3 {[%clk 0:04:57.9]} 3... c5 {[%clk 0:04:56.3]}
4. Nc3 {[%clk 0:04:55.9]} 4... cxd4 {[%clk 0:04:54.7]} 5. Nxd4 {[%clk
0:04:55.8]} 5... a6 {[%clk 0:04:51.7]} 6. Bf4 {[%clk 0:04:54.4]} 6... d6 {[%clk
0:04:47.4]} 7. b4 {[%clk 0:04:46.9]} 7... e5 {[%clk 0:04:35.6]} 8. Nf5 {[%clk
0:04:23.5]} 8... Bxf5 {[%clk 0:04:32.1]} 9. Be3 {[%clk 0:04:18.8]} 9... Qc7
{[%clk 0:04:19.9]} 10. g3 {[%clk 0:04:11.7]} 10... Qxc4 {[%clk 0:04:16.1]} 11.
Rc1 {[%clk 0:04:07.1]} 11... Qxb4 {[%clk 0:04:10.6]} 12. Bg2 {[%clk 0:03:59]}
12... Be7 {[%clk 0:03:52.1]} 13. O-O {[%clk 0:03:55.2]} 13... O-O {[%clk
0:03:50.3]} 14. Bd2 {[%clk 0:03:50.4]} 14... Qb6 {[%clk 0:03:39.9]} 15. e4
{[%clk 0:03:41.1]} 15... Be6 {[%clk 0:03:32]} 16. Rb1 {[%clk 0:03:36.1]} 16...
Qc7 {[%clk 0:03:26.8]} 17. Be3 {[%clk 0:03:31.6]} 17... b5 {[%clk 0:03:24.9]}
18. Rc1 {[%clk 0:03:24]} 18... Bc4 {[%clk 0:03:07.8]} 19. Nd5 {[%clk 0:03:13.2]}
19... Nxd5 {[%clk 0:03:04.2]} 20. exd5 {[%clk 0:03:13.1]} 20... f5 {[%clk
0:02:55.8]} 21. f4 {[%clk 0:03:07.9]} 21... Nd7 {[%clk 0:02:38.1]} 22. Qd2
{[%clk 0:02:45]} 22... Bf6 {[%clk 0:02:26.6]} 23. Rc2 {[%clk 0:02:38.4]} 23...
Rac8 {[%clk 0:02:16.3]} 24. Rfc1 {[%clk 0:02:36.9]} 24... Nb6 {[%clk 0:01:54.8]}
25. Bxb6 {[%clk 0:02:29.1]} 25... Qxb6+ {[%clk 0:01:53.4]} 26. Kh1 {[%clk
0:02:15.8]} 26... e4 {[%clk 0:01:52.5]} 27. Rb1 {[%clk 0:02:11.5]} 27... Bd3
{[%clk 0:01:42.3]} 28. Rxc8 {[%clk 0:02:02.7]} 28... Rxc8 {[%clk 0:01:41.2]} 29.
Re1 {[%clk 0:01:53.5]} 29... Rc2 {[%clk 0:01:38.9]} 30. Qd1 {[%clk 0:01:41.2]}
30... Qf2 {[%clk 0:01:37.2]} 31. Rg1 {[%clk 0:01:38.1]} 31... Bd4 {[%clk
0:01:35.3]} 32. h4 {[%clk 0:01:29.5]} 32... Qxg3 {[%clk 0:01:28.9]} 33. Bxe4
{[%clk 0:01:12.9]} 33... Qh3# {[%clk 0:01:23.7]} 0-1

[Event "Live Chess"]
[Site "Chess.com"]
[Date "2024.06.01"]
[Round "-"]
[White "BostonStrangler"]
[Black "bonantagulo"]
[Result "0-1"]
[WhiteElo "2118"]
[BlackElo "2115"]
[TimeControl "300"]
[EndTime "14:29:53 PDT"]
[Termination "bonantagulo won by resignation"]

1. c4 {[%clk 0:04:55.4]} 1... Nf6 {[%clk 0:04:58.9]} 2. Nc3 {[%clk 0:04:53.6]}
2... e5 {[%clk 0:04:57.4]} 3. Nf3 {[%clk 0:04:50.2]} 3... Nc6 {[%clk 0:04:56]}
4. a3 {[%clk 0:04:49]} 4... a5 {[%clk 0:04:50.5]} 5. g3 {[%clk 0:04:45.6]} 5...
Bc5 {[%clk 0:04:49.1]} 6. Bg2 {[%clk 0:04:44]} 6... O-O {[%clk 0:04:48.4]} 7. e3
{[%clk 0:04:43.2]} 7... Re8 {[%clk 0:04:45.6]} 8. O-O {[%clk 0:04:41.8]} 8... e4
{[%clk 0:04:44.1]} 9. Ng5 {[%clk 0:04:40.3]} 9... Qe7 {[%clk 0:04:43.4]} 10. d4
{[%clk 0:04:36.2]} 10... exd3 {[%clk 0:04:42.3]} 11. Qxd3 {[%clk 0:04:33.9]}
11... d6 {[%clk 0:04:41.3]} 12. Nd5 {[%clk 0:04:30.9]} 12... Qe5 {[%clk
0:04:26.6]} 13. Nxc7 {[%clk 0:03:56.8]} 13... Qxg5 {[%clk 0:04:16.1]} 14. Nxa8
{[%clk 0:03:55.1]} 14... Re7 {[%clk 0:04:09.3]} 15. e4 {[%clk 0:03:51.6]} 15...
Qh5 {[%clk 0:04:02]} 16. Be3 {[%clk 0:03:26.9]} 16... Ng4 {[%clk 0:03:59.3]} 17.
h4 {[%clk 0:03:22.2]} 17... Nce5 {[%clk 0:03:52.1]} 18. Qe2 {[%clk 0:03:08.4]}
18... Bxe3 {[%clk 0:03:24.5]} 19. fxe3 {[%clk 0:03:03.2]} 19... Qg6 {[%clk
0:03:23.6]} 20. Nb6 {[%clk 0:02:51.3]} 20... Be6 {[%clk 0:03:22.3]} 21. Nd5
{[%clk 0:02:42.5]} 21... Bxd5 {[%clk 0:03:20.5]} 22. cxd5 {[%clk 0:02:37.8]}
22... Nf6 {[%clk 0:03:18.9]} 23. Rf3 {[%clk 0:02:02.9]} 23... Nxf3+ {[%clk
0:03:09.5]} 24. Qxf3 {[%clk 0:02:01.4]} 24... Nxe4 {[%clk 0:03:00.4]} 25. Rc1
{[%clk 0:01:58.6]} 25... h5 {[%clk 0:02:50.7]} 26. Kh2 {[%clk 0:01:26.6]} 26...
Nf6 {[%clk 0:02:48.6]} 27. Bh3 {[%clk 0:01:20.1]} 27... Ng4+ {[%clk 0:02:45.3]}
28. Bxg4 {[%clk 0:01:16.3]} 28... hxg4 {[%clk 0:02:45.2]} 29. Qf4 {[%clk
0:00:52.1]} 29... Re5 {[%clk 0:02:41.8]} 30. Qd4 {[%clk 0:00:28.8]} 30... Qf5
{[%clk 0:02:32.7]} 31. e4 {[%clk 0:00:10.3]} 31... Rxe4 {[%clk 0:02:26.1]} 32.
Rc8+ {[%clk 0:00:07.4]} 32... Kh7 {[%clk 0:02:22.5]} 0-1

[Event "Live Chess"]
[Site "Chess.com"]
[Date "2024.06.01"]
[Round "-"]
[White "GEMdzq"]
[Black "DylanMeyer1"]
[Result "1-0"]
[WhiteElo "2316"]
[BlackElo "1709"]
[TimeControl "300"]
[EndTime "14:29:56 PDT"]
[Termination "GEMdzq won by resignation"]

1. e4 {[%clk 0:04:57.7]} 1... d5 {[%clk 0:04:59.2]} 2. exd5 {[%clk 0:04:56.4]}
2... Qxd5 {[%clk 0:04:59.1]} 3. Nc3 {[%clk 0:04:55.3]} 3... Qd6 {[%clk 0:04:59]}
4. d4 {[%clk 0:04:54.5]} 4... a6 {[%clk 0:04:58.2]} 5. Bc4 {[%clk 0:04:53.9]}
5... Nf6 {[%clk 0:04:57.5]} 6. Nf3 {[%clk 0:04:52.9]} 6... e6 {[%clk 0:04:56.8]}
7. O-O {[%clk 0:04:51.4]} 7... Be7 {[%clk 0:04:56.4]} 8. Ne5 {[%clk 0:04:48.7]}
8... O-O {[%clk 0:04:55.7]} 9. Bf4 {[%clk 0:04:47.7]} 9... Qd7 {[%clk
0:04:54.8]} 10. Nxd7 {[%clk 0:04:46.1]} 10... Bxd7 {[%clk 0:04:54.7]} 11. Bxc7
{[%clk 0:04:43.6]} 11... Nc6 {[%clk 0:04:53.3]} 12. Be5 {[%clk 0:04:41.6]} 12...
Rad8 {[%clk 0:04:50.3]} 13. Qe2 {[%clk 0:04:40.1]} 13... b5 {[%clk 0:04:46.3]}
14. Bd3 {[%clk 0:04:38]} 14... Nb4 {[%clk 0:04:39.6]} 15. Rad1 {[%clk
0:04:33.9]} 15... Nxd3 {[%clk 0:04:38.5]} 16. Rxd3 {[%clk 0:04:32.7]} 16... Bc6
{[%clk 0:04:33.8]} 17. Rg3 {[%clk 0:04:31.5]} 17... g6 {[%clk 0:04:32.1]} 18. h4
{[%clk 0:04:26.1]} 18... Nh5 {[%clk 0:04:30.7]} 19. Qxh5 {[%clk 0:04:24.4]} 1-0